fUSD/lending_fUSD_20241018
["ID","MTS","AMOUNT","RATE_DAILY","PERIOD"]
[340465435,1729277462176,-500.0,0.00024931,2]
[340465436,1729277462186,-500.0,0.00024931,2]
[340465437,1729277462195,-500.0,0.00024931,2]
[340465438,1729277462204,-180.27016,0.00024931,7]
[340465439,1729277462213,-500.0,0.00024931,2]
[340465440,1729277462222,-500.0,0.00024931,2]
[340465441,1729277462231,-500.0,0.00024931,2]
[340465442,1729277462241,-340.57952768,0.00024931,2]
[340465443,1729277462251,-506.85548953,0.00024931,2]
[340465444,1729277462260,-2054.45,0.00024931,2]
[340465445,1729277462269,-2054.45,0.00024931,2]
[340465446,1729277462279,-2054.45,0.00024931,2]
[340465447,1729277462288,-2054.45,0.00024931,2]
[340465448,1729277462299,-741.62,0.00024931,2]
[340465449,1729277462309,-507.31263101,0.00024931,2]
[340465450,1729277462319,-2054.45,0.00024931,2]
[340465451,1729277462328,-741.62,0.00024931,2]
[340465452,1729277462337,-741.62,0.00024931,2]
[340465453,1729277462349,-2054.45,0.00024931,2]
[340465454,1729277462359,-741.62,0.00024931,2]
[340465455,1729277462368,-2054.45,0.00024931,2]
[340465456,1729277462378,-741.62,0.00024931,2]
[340465457,1729277462388,-2054.45,0.00024931,2]
[340465458,1729277462398,-500.0,0.00024931,2]
[340465459,1729277462407,-741.62,0.00024931,2]
[340465460,1729277462416,-2054.45,0.00024931,2]
[340465461,1729277462425,-500.0,0.00024931,2]
[340465462,1729277462435,-741.62,0.00024931,2]
[340465463,1729277462444,-2054.45,0.00024931,2]
[340465464,1729277462454,-500.0,0.00024931,2]
[340465465,1729277462463,-741.62,0.00024931,2]
[340465466,1729277462472,-2054.45,0.00024931,2]
[340465467,1729277462482,-500.0,0.00024931,2]
[340465468,1729277462491,-741.62,0.00024931,2]
[340465469,1729277462502,-2054.45,0.00024931,2]
[340465470,1729277462512,-500.0,0.00024931,2]
[340465471,1729277462522,-2054.45,0.00024931,2]
[340465472,1729277462532,-741.62,0.00024931,2]
[340465473,1729277462541,-500.0,0.00024931,2]
[340465474,1729277462550,-741.62,0.00024931,2]
[340465475,1729277462559,-500.0,0.00024931,2]
[340465476,1729277462568,-741.62,0.00024931,2]
[340465477,1729277462578,-2054.45,0.00024931,2]
[340465478,1729277462587,-500.0,0.00024931,2]
[340465479,1729277462596,-741.62,0.00024931,2]
[340465480,1729277462606,-2054.45,0.00024931,2]
[340465481,1729277462614,-500.0,0.00024931,2]
[340465482,1729277462623,-500.0,0.00024931,2]
[340465483,1729277462634,-2054.45,0.00024931,2]
[340465484,1729277462645,-741.62,0.00024931,2]
[340465485,1729277462655,-500.0,0.00024931,2]
[340465486,1729277462665,-500.0,0.00024931,2]
[340465487,1729277462674,-2054.45,0.00024931,2]
[340465488,1729277462684,-741.62,0.00024931,2]
[340465489,1729277462694,-500.0,0.00024931,2]
[340465490,1729277462703,-2054.45,0.00024931,2]
[340465491,1729277462712,-544.11551668,0.00024931,2]
[340465492,1729277462724,-741.62,0.00024931,2]
[340465493,1729277462734,-500.0,0.00024931,2]
[340465494,1729277462743,-2054.45,0.00024931,2]
[340465495,1729277462752,-741.62,0.00024931,2]
[340465496,1729277462762,-500.0,0.00024931,2]
[340465497,1729277462771,-2054.45,0.00024931,2]
[340465498,1729277462779,-741.62,0.00024931,2]
[340465499,1729277462789,-222.78985299,0.00024931,2]
[340465500,1729277462798,-2054.45,0.00024931,2]
[340465501,1729277462808,-2054.45,0.00024931,2]
[340465502,1729277462817,-741.62,0.00024931,2]
[340465503,1729277462826,-2054.45,0.00024931,2]
[340465504,1729277462836,-612.76,0.00024931,2]
[340465505,1729277462846,-741.62,0.00024931,2]
[340465506,1729277462856,-2054.47877468,0.00024931,2]
[340465507,1729277462865,-741.62,0.00024931,2]
[340465508,1729277462874,-612.76,0.00024931,2]
[340465509,1729277462883,-741.62,0.00024931,2]
[340465510,1729277462893,-612.76,0.00024931,2]
[340465511,1729277462902,-612.76,0.00024931,2]
[340465512,1729277462912,-741.62,0.00024931,2]
[340465513,1729277462922,-612.76,0.00024931,2]
[340465514,1729277462931,-741.79619448,0.00024931,2]
[340465515,1729277462940,-612.76,0.00024931,2]
[340465516,1729277462949,-612.76,0.00024931,2]
[340465517,1729277462958,-612.76,0.00024931,2]
[340465518,1729277462967,-612.76,0.00024931,2]
[340465519,1729277462976,-612.76,0.00024931,2]
[340465520,1729277462986,-612.76,0.00024931,2]
[340465521,1729277462995,-612.76,0.00024931,2]
[340465522,1729277463004,-612.76,0.00024931,2]
[340465523,1729277463017,-612.76,0.00024931,2]
[340465524,1729277463026,-2134.42,0.00024931,2]
[340465525,1729277463035,-785.17,0.00024931,2]
[340465526,1729277463045,-612.76,0.00024931,2]
[340465527,1729277463055,-2134.42,0.00024931,2]
[340465528,1729277463065,-785.17,0.00024931,2]
[340465529,1729277463075,-612.76,0.00024931,2]
[340465530,1729277463085,-2134.42,0.00024931,2]
[340465531,1729277463097,-785.17,0.00024931,2]
[340465532,1729277463108,-612.76,0.00024931,2]
[340465533,1729277463117,-2134.42,0.00024931,2]
[340465534,1729277463126,-785.17,0.00024931,2]
[340465535,1729277463136,-612.76,0.00024931,2]
[340465536,1729277463145,-2134.42,0.00024931,2]
[340465537,1729277463155,-785.17,0.00024931,2]
[340465538,1729277463164,-612.76,0.00024931,2]
[340465539,1729277463174,-2134.42,0.00024931,2]
[340465540,1729277463184,-612.76,0.00024931,2]
[340465541,1729277463194,-785.17,0.00024931,2]
[340465542,1729277463204,-2134.42,0.00024931,2]
[340465543,1729277463213,-612.76,0.00024931,2]
[340465544,1729277463224,-785.17,0.00024931,2]
[340465545,1729277463233,-2134.42,0.00024931,2]
[340465546,1729277463243,-612.76,0.00024931,2]
[340465547,1729277463253,-785.17,0.00024931,2]
[340465548,1729277463262,-2134.42,0.00024931,2]
[340465549,1729277463271,-612.76,0.00024931,2]
[340465550,1729277463280,-1524.01,0.00024931,2]
[340465551,1729277463290,-785.17,0.00024931,2]
[340465552,1729277463299,-2134.42,0.00024931,2]
[340465553,1729277463309,-785.17,0.00024931,2]
[340465554,1729277463318,-612.86619722,0.00024931,2]
[340465555,1729277463328,-1524.01,0.00024931,2]
[340465556,1729277463338,-499.2495,0.00024931,2]
[340465557,1729277463348,-500.0,0.00024931,2]
[340465558,1729277463358,-785.17,0.00024931,2]
[340465559,1729277463368,-1524.01,0.00024931,2]
[340465560,1729277463377,-500.0,0.00024931,2]
[340465561,1729277463387,-785.17,0.00024931,2]
[340465562,1729277463397,-2134.42,0.00024931,2]
[340465563,1729277463406,-1524.01,0.00024931,2]
[340465564,1729277463416,-500.0,0.00024931,2]
[340465565,1729277463426,-2134.42,0.00024931,2]
[340465566,1729277463435,-785.17,0.00024931,2]
[340465567,1729277463445,-1524.01,0.00024931,2]
[340465568,1729277463454,-2134.42,0.00024931,2]
[340465569,1729277463464,-500.0,0.00024931,2]
[340465570,1729277463474,-785.17,0.00024931,2]
[340465571,1729277463484,-1524.01,0.00024931,2]
[340465572,1729277463494,-2134.42,0.00024931,2]
[340465573,1729277463502,-500.0,0.00024931,2]
[340465574,1729277463512,-785.17,0.00024931,2]
[340465575,1729277463522,-1524.01,0.00024931,2]
[340465576,1729277463532,-2134.42,0.00024931,2]
[340465577,1729277463542,-500.0,0.00024931,2]
[340465578,1729277463552,-785.17,0.00024931,2]
[340465579,1729277463561,-1524.01,0.00024931,2]
[340465580,1729277463571,-2134.42,0.00024931,2]
[340465581,1729277463581,-500.0,0.00024931,2]
[340465582,1729277463590,-785.17,0.00024931,2]
[340465583,1729277463601,-1524.01,0.00024931,2]
[340465584,1729277463611,-2134.42,0.00024931,2]
[340465585,1729277463620,-500.0,0.00024931,2]
[340465586,1729277463630,-785.17,0.00024931,2]
[340465587,1729277463639,-1524.01,0.00024931,2]
[340465588,1729277463649,-2134.42,0.00024931,2]
[340465589,1729277463659,-500.0,0.00024931,2]
[340465590,1729277463668,-785.17,0.00024931,2]
[340465591,1729277463678,-1524.01,0.00024931,2]
[340465592,1729277463687,-2134.42,0.00024931,2]
[340465593,1729277463819,-500.0,0.00024931,2]
[340465594,1729277463830,-785.17,0.00024931,2]
[340465595,1729277463841,-1524.01,0.00024931,2]
[340465596,1729277463852,-506.02,0.00024931,2]
[340465597,1729277463863,-785.17,0.00024931,2]
[340465598,1729277463874,-1524.01,0.00024931,2]
[340465599,1729277463883,-2134.42,0.00024931,2]
[340465600,1729277463893,-1524.01,0.00024931,2]
[340465601,1729277463904,-785.17,0.00024931,2]
[340465602,1729277463913,-1524.01,0.00024931,2]
[340465603,1729277463923,-785.17,0.00024931,2]
[340465604,1729277463933,-2134.42,0.00024931,2]
[340465605,1729277463943,-1524.01,0.00024931,2]
[340465606,1729277463952,-785.29,0.00024931,2]
[340465607,1729277463962,-2134.42,0.00024931,2]
[340465608,1729277463972,-1524.01,0.00024931,2]
[340465609,1729277463982,-2134.42,0.00024931,2]
[340465610,1729277463991,-1524.01,0.00024931,2]
[340465611,1729277464001,-2134.52398148,0.00024931,2]
[340465612,1729277464013,-1524.01,0.00024931,2]
[340465613,1729277464022,-1524.01,0.00024931,2]
[340465614,1729277464033,-1524.01,0.00024931,2]
[340465615,1729277464043,-1524.01,0.00024931,2]
[340465616,1729277464053,-1524.01,0.00024931,2]
[340465617,1729277464064,-1524.05,0.00024931,2]
[340465618,1729277464074,-505.67,0.00024931,2]
[340465619,1729277464083,-505.67,0.00024931,2]
[340465620,1729277464094,-505.67,0.00024931,2]
[340465621,1729277464104,-505.67,0.00024931,2]
[340465622,1729277464114,-505.67,0.00024931,2]
[340465623,1729277464123,-505.67,0.00024931,2]
[340465624,1729277464133,-505.67,0.00024931,2]
[340465625,1729277464143,-505.67,0.00024931,2]
[340465626,1729277464153,-500.0,0.00024931,2]
[340465627,1729277464162,-262.10449708,0.00024931,2]
[340465628,1729277464172,-505.67,0.00024931,2]
[340465629,1729277464182,-500.0,0.00024931,2]
[340465630,1729277464192,-505.67,0.00024931,2]
[340465631,1729277464201,-500.0,0.00024931,2]
[340465632,1729277464212,-505.67,0.00024931,2]
[340465633,1729277464221,-500.0,0.00024931,2]
[340465634,1729277464231,-500.0,0.00024931,2]
[340465635,1729277464240,-500.0,0.00024931,2]
[340465636,1729277464249,-500.0,0.00024931,2]
[340465637,1729277464259,-500.0,0.00024931,2]
[340465638,1729277464269,-500.0,0.00024931,2]
[340465639,1729277464278,-505.67,0.00024931,2]
[340465640,1729277464287,-500.0,0.00024931,2]
[340465641,1729277464297,-500.0,0.00024931,2]
[340465642,1729277464307,-505.67,0.00024931,2]
[340465643,1729277464317,-500.0,0.00024931,2]
[340465644,1729277464327,-500.0,0.00024931,2]
[340465645,1729277464337,-500.0,0.00024931,2]
[340465646,1729277464347,-505.67,0.00024931,2]
[340465647,1729277464358,-554.15548759,0.00024931,2]
[340465648,1729277464368,-500.0,0.00024931,2]
[340465649,1729277464378,-500.0,0.00024931,2]
[340465650,1729277464387,-505.67,0.00024931,2]
[340465651,1729277464397,-500.0,0.00024931,2]
[340465652,1729277464407,-2026.06,0.00024931,2]
[340465653,1729277464416,-500.0,0.00024931,2]
[340465654,1729277464426,-496.92824709,0.00024931,2]
[340465655,1729277464435,-2026.06,0.00024931,2]
[340465656,1729277464444,-500.0,0.00024931,2]
[340465657,1729277464453,-505.67,0.00024931,2]
[340465658,1729277464462,-2026.06,0.00024931,2]
[340465659,1729277464472,-500.0,0.00024931,2]
[340465660,1729277464483,-505.67,0.00024931,2]
[340465661,1729277464493,-2026.06,0.00024931,2]
[340465662,1729277464502,-505.67,0.00024931,2]
[340465663,1729277464512,-54.42109369,0.00024931,2]
[340465664,1729277464660,-445.57890631,0.00024931,2]
[340465665,1729277464670,-724.44858622,0.00024931,2]
[340465666,1729277464683,-333.65772345,0.00024931,2]
[340465667,1729277464695,-967.95369033,0.00024931,2]
[340465668,1729277464705,-110.61703975,0.00024931,2]
[340465669,1729277464722,-397.51152374,0.00024931,2]
[340465670,1729277464732,-505.67,0.00024931,2]
[340465671,1729277464742,-500.0,0.00024931,2]
[340465672,1729277464751,-2026.06,0.00024931,2]
[340465673,1729277464761,-500.0,0.00024931,2]
[340465674,1729277464771,-2026.06,0.00024931,2]
[340465675,1729277464780,-505.67,0.00024931,2]
[340465676,1729277464791,-500.0,0.00024931,2]
[340465677,1729277464800,-2026.06,0.00024931,2]
[340465678,1729277464810,-505.67,0.00024931,2]
[340465679,1729277464820,-2026.06,0.00024931,2]
[340465680,1729277464830,-505.67,0.00024931,2]
[340465681,1729277464840,-500.0,0.00024931,2]
[340465682,1729277464850,-151.0,0.00024931,7]
[340465683,1729277464860,-1794.17,0.00024931,2]
[340465684,1729277464869,-2026.06,0.00024931,2]
[340465685,1729277464879,-505.67,0.00024931,2]
[340465686,1729277464889,-151.0,0.00024931,7]
[340465687,1729277464899,-500.0,0.00024931,2]
[340465688,1729277464909,-1794.17,0.00024931,2]
[340465689,1729277464919,-151.0,0.00024931,7]
[340465690,1729277464929,-500.0,0.00024931,2]
[340465691,1729277464938,-1794.17,0.00024931,2]
[340465692,1729277464948,-500.0,0.00024931,2]
[340465693,1729277464958,-155.116392,0.00024931,7]
[340465694,1729277464967,-1794.17,0.00024931,2]
[340465695,1729277464976,-500.0,0.00024931,2]
[340465696,1729277464986,-505.7708606,0.00024931,2]
[340465697,1729277464996,-2026.06,0.00024931,2]
[340465698,1729277465006,-1794.17,0.00024931,2]
[340465699,1729277465017,-1794.17,0.00024931,2]
[340465700,1729277465026,-2026.06,0.00024931,2]
[340465701,1729277465036,-1153.01,0.00024931,2]
[340465702,1729277465046,-288.90181529,0.00024931,2]
[340465703,1729277465058,-1794.17,0.00024931,2]
[340465704,1729277465068,-1153.01,0.00024931,2]
[340465705,1729277465078,-1794.17,0.00024931,2]
[340465706,1729277465089,-1153.01,0.00024931,2]
[340465707,1729277465100,-2026.06,0.00024931,2]
[340465708,1729277465109,-2026.06,0.00024931,2]
[340465709,1729277465118,-1794.17,0.00024931,2]
[340465710,1729277465127,-1153.01,0.00024931,2]
[340465711,1729277465136,-2026.06,0.00024931,2]
[340465712,1729277465146,-572.58,0.00024931,2]
[340465713,1729277465156,-1794.17,0.00024931,2]
[340465714,1729277465165,-1153.01,0.00024931,2]
[340465715,1729277465175,-2026.06,0.00024931,2]
[340465716,1729277465185,-572.58,0.00024931,2]
[340465717,1729277465195,-572.58,0.00024931,2]
[340465718,1729277465204,-2026.06,0.00024931,2]
[340465719,1729277465213,-572.58,0.00024931,2]
[340465720,1729277465223,-1153.01,0.00024931,2]
[340465721,1729277465233,-572.58,0.00024931,2]
[340465722,1729277465244,-2026.06,0.00024931,2]
[340465723,1729277465253,-1153.01,0.00024931,2]
[340465724,1729277465262,-2026.06,0.00024931,2]
[340465725,1729277465272,-1153.01,0.00024931,2]
[340465726,1729277465282,-2026.06,0.00024931,2]
[340465727,1729277465291,-1794.17,0.00024931,2]
[340465728,1729277465301,-1153.01,0.00024931,2]
[340465729,1729277465310,-2026.06,0.00024931,2]
[340465730,1729277465319,-1153.01,0.00024931,2]
[340465731,1729277465329,-2026.06,0.00024931,2]
[340465732,1729277465339,-1794.17,0.00024931,2]
[340465733,1729277465350,-1153.01,0.00024931,2]
[340465734,1729277465359,-1794.17,0.00024931,2]
[340465735,1729277465369,-572.58,0.00024931,2]
[340465736,1729277465379,-2026.06,0.00024931,2]
[340465737,1729277465389,-1153.01,0.00024931,2]
[340465738,1729277465398,-192.01936509,0.00024931,2]
[340465739,1729277595692,150.0,0.000118,2]
[340465740,1729277595713,72.8,0.000118,2]
[340465741,1729277598878,500.0,0.0002696,120]
[340465752,1729277733142,-150.0,0.00016,2]
[340465753,1729277733317,-16.70346086,0.00016,2]
[340465756,1729277757089,550.0,0.0001,2]
[340465758,1729277793798,150.0,0.00010959,2]
[340465759,1729277793820,17.11,0.00010959,2]
[340465760,1729277854720,-150.0,0.0001726,2]
[340465761,1729278200342,500.0,0.00026993,120]
[340466096,1729278392414,-152.69,0.00010959,2]
[340466097,1729278398646,160.0,0.00025862,120]
[340466098,1729278515391,150.0,0.0001726,2]
[340466101,1729278631598,-152.69,0.00017592,2]
[340466102,1729278631607,-1291.40658498,0.00019625,2]
[340466103,1729278631616,-443.80112557,0.00019725,2]
[340466104,1729278631625,-300.0,0.00019725,2]
[340466105,1729278631635,-669.2988024,0.00021127,2]
[340466106,1729278631877,-1.1611976,0.00021127,2]
[340466107,1729278631886,-216.0,0.00021484,2]
[340466108,1729278631896,-250.0,0.00022939,2]
[340466109,1729278631905,-238.43,0.00022971,2]
[340466110,1729278631914,-150.99,0.00022971,2]
[340466111,1729278631923,-160.0,0.00022988,2]
[340466112,1729278631932,-499.99,0.00022988,2]
[340466114,1729278631941,-904.52780314,0.00023,2]
[340466116,1729278637994,-97.25219686,0.00023,2]
[340466117,1729278638004,-225.59,0.00023018,2]
[340466118,1729278638014,-922.37,0.00023018,2]
[340466119,1729278638024,-247.83,0.00023033,2]
[340466120,1729278638034,-4269.22,0.00023038,2]
[340466121,1729278638043,-8155.19,0.00023113,2]
[340466122,1729278638053,-201.29,0.00023113,2]
[340466123,1729278638062,-250.0,0.00023118,2]
[340466124,1729278638072,-175.06,0.00023126,2]
[340466125,1729278638081,-900.49,0.00023137,2]
[340466126,1729278638091,-860.55,0.00023156,2]
[340466127,1729278638101,-250.0,0.00023166,2]
[340466128,1729278638111,-1614.72,0.00023211,2]
[340466129,1729278638121,-166.05,0.00023231,2]
[340466130,1729278638130,-841.65,0.00023291,2]
[340466131,1729278638140,-326.61,0.00023361,30]
[340466132,1729278638149,-670.46,0.00023391,2]
[340466133,1729278638159,-2711.25,0.00023645,2]
[340466134,1729278638169,-2711.25,0.00023651,2]
[340466135,1729278638178,-2711.25,0.00023657,2]
[340466136,1729278638188,-2711.25,0.00023663,2]
[340466137,1729278638197,-2711.25,0.00023669,2]
[340466138,1729278638207,-2711.25,0.00023676,2]
[340466139,1729278638216,-2711.25,0.00023682,2]
[340466140,1729278638226,-2711.25,0.00023688,2]
[340466141,1729278638235,-2711.25,0.00023694,2]
[340466142,1729278638244,-2711.25,0.000237,2]
[340466143,1729278638254,-2076.93698711,0.00023707,2]
[340466144,1729278638266,-634.31301289,0.00023707,2]
[340466145,1729278638275,-2711.25,0.00023713,2]
[340466146,1729278638285,-2711.25,0.00023719,2]
[340466147,1729278638294,-2711.25,0.00023725,2]
[340466148,1729278638303,-2711.25,0.00023732,2]
[340466149,1729278638312,-2711.25,0.00023738,2]
[340466150,1729278638322,-2711.25,0.00023744,2]
[340466151,1729278638331,-2711.25,0.0002375,2]
[340466152,1729278638340,-2711.25,0.00023756,2]
[340466154,1729278638351,-2711.25,0.00023763,2]
[340466155,1729278638362,-150.38,0.00023941,2]
[340466156,1729278638374,-1000.0,0.00024094,2]
[340466157,1729278638383,-1001.78,0.0002413,2]
[340466158,1729278638392,-152.69,0.00024225,2]
[340466159,1729278638403,-175.06,0.00024282,2]
[340466160,1729278638412,-277.0673,0.00024621,2]
[340466161,1729278638422,-633.24752541,0.0002463,4]
[340466162,1729278638431,-500.0,0.00024658,7]
[340466163,1729278638441,-336.795,0.0002469,2]
[340466164,1729278638451,-168.43382,0.0002473,2]
[340466165,1729278638460,-150.0,0.0002477,2]
[340466166,1729278638469,-150.0,0.00024771,2]
[340466167,1729278638479,-368.4833417,0.00024821,4]
[340466168,1729278638491,-264.7641837,0.00024821,4]
[340466169,1729278638500,-638.0561,0.00024821,2]
[340466170,1729278638509,-1097.1797163,0.00024821,2]
[340466171,1729278638532,-6402.8202837,0.00024821,2]
[340466172,1729278638541,-154.61304323,0.00024821,2]
[340466173,1729278638551,-1063.6436606,0.00024831,2]
[340466174,1729278638560,-287.86,0.00024849,8]
[340466175,1729278638569,-154.61304322,0.00024861,2]
[340466176,1729278638579,-1063.64366058,0.00024866,2]
[340466177,1729278638589,-150.0,0.00024878,2]
[340466178,1729278638598,-416.0,0.000249,8]
[340466179,1729278638608,-152.66,0.000249,31]
[340466180,1729278638618,-152.66,0.000249,31]
[340466181,1729278638806,-152.66,0.000249,31]
[340466182,1729278638816,-152.66,0.000249,31]
[340466183,1729278638826,-152.66,0.000249,31]
[340466184,1729278638836,-152.66,0.000249,31]
[340466185,1729278638846,-152.66,0.000249,31]
[340466186,1729278638857,-300.0,0.000249,2]
[340466187,1729278638866,-154.61304322,0.000249,2]
[340466188,1729278638875,-832.30454544,0.000249,2]
[340466189,1729278638943,-231.33911514,0.000249,2]
[340466190,1729278638953,-87.52131782,0.00024911,5]
[340466194,1729278639745,-1410.02559167,0.00024911,5]
[340466195,1729278639756,-1594.93998,0.00024911,5]
[340466242,1729278642799,-536.28001313,0.00024911,5]
[340466243,1729278642811,-21328.93332988,0.00024911,5]
[340466245,1729278642821,-151.43,0.00024911,2]
[340466246,1729278642830,-150.0,0.00024914,2]
[340466248,1729278642839,-8369.63667012,0.00024914,6]
[340466250,1729278642860,-392.857998,0.00024914,6]
[340466257,1729278643024,-1988.20774158,0.00024914,6]
[340466258,1729278643036,-2500.0,0.00024914,6]
[340466259,1729278643050,-2074238.14137878,0.00024914,6]
[340466260,1729278643064,-110430.251082,0.00024914,6]
[340466298,1729278645649,-277972.09,0.00024914,6]
[340466300,1729278645660,-39934.40996999,0.00024914,6]
[340466302,1729278645671,-99991.1101,0.00024914,6]
[340466303,1729278645682,-12864.27367821,0.00024914,6]
[340466304,1729278645693,-36920.832,0.00024914,6]
[340466305,1729278645949,-14992.00992517,0.00024914,6]
[340466306,1729278645962,-331.17450653,0.00024914,6]
[340466342,1729278700092,-150.0,0.0001726,2]
[340466343,1729278725151,167.69128798,0.00027,60]
[340466344,1729278796767,500.0,0.00027,120]
[340466346,1729279398015,500.0,0.00027,120]
[340466347,1729279448243,669.7984306,0.00027,60]
[340466348,1729279510254,-868.21802915,0.00011,2]
[340466349,1729279510880,-150.0,0.00011,2]
[340466350,1729279587377,-400.0,0.000109,2]
[340466351,1729279636128,-233.24752541,0.000109,2]
[340466352,1729279636147,-633.2475254,0.000109,2]
[340466353,1729279636167,-163.86,0.00010959,2]
[340466354,1729279636186,-424.38888601,0.00010973,2]
[340466355,1729279636207,-401.0368402,0.00010999,2]
[340466356,1729279636234,-67.03886867,0.00010999,2]
[340466357,1729279636260,-237579.79648428,0.00011,2]
[340466358,1729279676467,150.0,0.0001,2]
[340466359,1729279676490,150.0,0.0001,2]
[340466360,1729279676512,150.0,0.0001,2]
[340466361,1729279676534,150.0,0.0001,2]
[340466362,1729279676555,150.0,0.0001,2]
[340466363,1729279676576,150.0,0.0001,2]
[340466364,1729279676598,111.48943772,0.0001,2]
[340466365,1729279678011,-500.0,0.00010973,2]
[340466366,1729279679509,-355.42595761,0.00011,2]
[340466367,1729279680129,-436.14,0.00011,2]
[340466368,1729279767092,-1341.98807039,0.00011,2]
[340466396,1729279831721,-361.36554768,0.00011,2]
[340466400,1729279831764,-7496.7048344,0.00011,2]
[340466401,1729279831797,-34268.23783094,0.00011,2]
[340466402,1729279831808,-12117.30252774,0.00011,2]
[340466403,1729279831828,-4064.67310528,0.00011,2]
[340466404,1729279831840,-1126.78540041,0.00011,2]
[340466405,1729279831864,-591.45,0.00011,2]
[340466406,1729279831982,-1500.3044245,0.00011,2]
[340466407,1729279831993,-1326.47409564,0.00011,2]
[340466408,1729279832004,-851.45896926,0.00011,2]
[340466409,1729279832127,-47513.94352387,0.00011,2]
[340466413,1729279837799,-31184.60384993,0.00011,2]
[340466414,1729279837811,-757.25070126,0.00011,2]
[340466415,1729279837857,-153240.63502974,0.00011,2]
[340466416,1729279837870,-289.394105,0.00011,2]
[340466417,1729279837882,-534.33506897,0.00011,2]
[340466418,1729279837893,-997.79948214,0.00011,2]
[340466419,1729279837904,-412728.53791956,0.00011,2]
[340466420,1729279838036,-519.07829482,0.00011,2]
[340466421,1729279838047,-2100.92790881,0.00011,2]
[340466422,1729279838058,-95206.25325025,0.00011,2]
[340466423,1729279838070,-930.51620209,0.00011,2]
[340466424,1729279838080,-5808.32989986,0.00011,2]
[340466425,1729279838092,-327.698,0.00011,2]
[340466426,1729279838103,-415.92,0.00011,2]
[340466427,1729279838113,-2066.58,0.00011,2]
[340466428,1729279838125,-2837.4908233,0.00011,2]
[340466457,1729279839714,-392.75046497,0.00011,2]
[340466459,1729279839727,-1300.60883859,0.00011,2]
[340466461,1729279839738,-639.318,0.00011,2]
[340466466,1729279839773,-320.91406874,0.00011,2]
[340466468,1729279839786,-567818.77123871,0.00011,2]
[340466475,1729279839841,-2408.76417884,0.00011,2]
[340466477,1729279839854,-1228.7700107,0.00011,2]
[340466479,1729279839865,-1580.1687,0.00011,2]
[340466481,1729279839877,-5248.52219931,0.00011,2]
[340466489,1729279839998,-222658.21413684,0.00011,2]
[340466491,1729279840009,-160200.56681728,0.00011,2]
[340466493,1729279840020,-112937.91082216,0.00011,2]
[340466496,1729279840032,-3422.0802614,0.00011,2]
[340466498,1729279840043,-4786.36046934,0.00011,2]
[340466506,1729279843503,-715.58487265,0.00011,2]
[340466507,1729279843568,-16586.10000112,0.00011,2]
[340466508,1729279843582,-8571.53955077,0.00011,2]
[340466509,1729279843605,-3132.68676533,0.00011,2]
[340466510,1729279843616,-5373.94336958,0.00011,2]
[340466511,1729279843651,-615.31597356,0.00011,2]
[340466523,1729279845830,-151238.5339933,0.00011,2]
[340466524,1729279845839,-18356.79614343,0.00011,2]
[340466525,1729279845852,-3460.1811,0.00011,2]
[340466526,1729279845864,-3642.0556,0.00011,2]